fUST/lending_fUST_20240921
["ID","MTS","AMOUNT","RATE_DAILY","PERIOD"]
[338726433,1726899053664,-3000.0,0.0001623,2]
[338726434,1726899053674,-558.89,0.00016232,2]
[338726435,1726899053683,-1234.07,0.00016232,2]
[338726436,1726899053692,-500.0,0.00016232,2]
[338726437,1726899053701,-737.13,0.00016232,2]
[338726438,1726899053710,-21944.39,0.00016232,2]
[338726439,1726899053720,-3122.43,0.00016232,2]
[338726440,1726899053729,-609.35,0.00016233,2]
[338726441,1726899053739,-1170.4,0.00016233,2]
[338726442,1726899053748,-622.47,0.00016234,2]
[338726443,1726899053758,-500.0,0.00016234,2]
[338726444,1726899053768,-500.0,0.00016234,2]
[338726445,1726899053777,-500.0,0.00016234,2]
[338726446,1726899053786,-500.0,0.00016234,2]
[338726447,1726899053795,-500.0,0.00016234,2]
[338726448,1726899053804,-500.0,0.00016234,2]
[338726449,1726899053813,-500.0,0.00016234,2]
[338726450,1726899053823,-500.0,0.00016234,2]
[338726451,1726899053831,-500.0,0.00016234,2]
[338726452,1726899053840,-907.39,0.00016234,2]
[338726453,1726899053849,-500.0,0.00016234,2]
[338726454,1726899053859,-500.0,0.00016234,2]
[338726455,1726899053868,-500.0,0.00016234,2]
[338726456,1726899053877,-500.0,0.00016234,2]
[338726457,1726899053887,-579.1,0.00016234,2]
[338726458,1726899053895,-500.0,0.00016234,2]
[338726459,1726899053904,-500.0,0.00016234,2]
[338726460,1726899053913,-500.0,0.00016234,2]
[338726461,1726899053922,-500.0,0.00016234,2]
[338726462,1726899053932,-500.0,0.00016234,2]
[338726463,1726899053941,-504.64,0.00016234,2]
[338726464,1726899053951,-500.0,0.00016234,2]
[338726465,1726899053960,-500.0,0.00016234,2]
[338726466,1726899053969,-500.0,0.00016234,2]
[338726467,1726899053978,-500.0,0.00016234,2]
[338726468,1726899053987,-440.02674261,0.00016234,2]
[338726469,1726899053996,-2500.0,0.00016234,2]
[338726470,1726899054005,-500.0,0.00016234,2]
[338726471,1726899054015,-500.0,0.00016234,2]
[338726472,1726899054025,-805.8,0.00016234,2]
[338726473,1726899054034,-500.0,0.00016234,2]
[338726474,1726899054044,-513.61643952,0.00016234,2]
[338726475,1726899054053,-500.0,0.00016234,2]
[338726476,1726899054062,-500.0,0.00016234,2]
[338726477,1726899054072,-531.75,0.00016234,2]
[338726478,1726899054082,-500.0,0.00016234,2]
[338726479,1726899054091,-883.19,0.00016234,2]
[338726480,1726899054100,-151.0,0.00016235,2]
[338726481,1726899054114,-192.671463,0.00016235,2]
[338726482,1726899054123,-151.0,0.00016235,2]
[338726483,1726899054133,-151.0,0.00016235,2]
[338726484,1726899054142,-155.82993,0.00016235,2]
[338726485,1726899054151,-155.82993,0.00016235,2]
[338726486,1726899054163,-782.134245,0.00016235,2]
[338726487,1726899054173,-782.134245,0.00016235,2]
[338726488,1726899054182,-589.079923,0.00016235,2]
[338726489,1726899054193,-589.079923,0.00016235,2]
[338726490,1726899054203,-2047.996871,0.00016235,2]
[338726491,1726899054212,-1119.362081,0.00016235,2]
[338726492,1726899054221,-2047.996871,0.00016235,2]
[338726493,1726899054231,-1119.362081,0.00016235,2]
[338726494,1726899054240,-232.153807,0.00016235,2]
[338726495,1726899054250,-1421.195539,0.00016235,2]
[338726496,1726899054259,-232.153807,0.00016235,2]
[338726497,1726899054269,-1421.195539,0.00016235,2]
[338726498,1726899054278,-870.899052,0.00016235,2]
[338726499,1726899054288,-870.899052,0.00016235,2]
[338726500,1726899054298,-200.0,0.00016236,2]
[338726501,1726899054307,-565.13,0.00016236,2]
[338726502,1726899054317,-500.0,0.00016236,2]
[338726503,1726899054326,-410.07372012,0.00016237,2]
[338726504,1726899054335,-12070.00341736,0.00016237,2]
[338726505,1726899054344,-500.0,0.00016237,2]
[338726506,1726899054353,-771.82,0.00016237,2]
[338726507,1726899054363,-500.0,0.00016237,2]
[338726508,1726899054372,-564.34,0.00016237,2]
[338726509,1726899054381,-550.59,0.00016237,2]
[338726510,1726899054391,-555.92,0.00016237,2]
[338726511,1726899054400,-500.0,0.00016237,2]
[338726512,1726899054410,-575.12,0.00016237,2]
[338726513,1726899054419,-500.0,0.00016237,2]
[338726514,1726899054428,-534.44,0.00016237,2]
[338726515,1726899054437,-500.0,0.00016237,2]
[338726516,1726899054446,-500.0,0.00016237,2]
[338726517,1726899054456,-500.0,0.00016237,2]
[338726518,1726899054465,-500.0,0.00016237,2]
[338726519,1726899054474,-156.44103273,0.00016237,2]
[338726520,1726899054482,-500.0,0.00016237,2]
[338726521,1726899054491,-500.0,0.00016237,2]
[338726522,1726899054501,-151.0,0.00016237,2]
[338726523,1726899054510,-151.0,0.00016237,2]
[338726524,1726899054519,-151.0,0.00016237,2]
[338726525,1726899054528,-151.0,0.00016237,2]
[338726526,1726899054537,-600.0,0.00016238,2]
[338726527,1726899054547,-151.0,0.00016239,2]
[338726528,1726899054556,-1032.522224,0.00016239,2]
[338726529,1726899054565,-1032.522224,0.00016239,2]
[338726530,1726899054574,-446.241031,0.00016239,2]
[338726531,1726899054584,-446.241031,0.00016239,2]
[338726532,1726899054593,-1466.107169,0.00016239,2]
[338726533,1726899054604,-1466.107169,0.00016239,2]
[338726534,1726899054613,-231.628617,0.00016239,2]
[338726535,1726899054622,-231.628617,0.00016239,2]
[338726536,1726899054631,-3000.0,0.0001624,2]
[338726537,1726899054640,-153.0,0.00016247,2]
[338726538,1726899054649,-153.0,0.00016247,2]
[338726539,1726899054658,-153.0,0.00016247,2]
[338726540,1726899054668,-153.0,0.00016247,2]
[338726541,1726899054677,-153.0,0.00016247,2]
[338726542,1726899054687,-153.0,0.00016247,2]
[338726543,1726899054696,-153.0,0.00016247,2]
[338726544,1726899054705,-153.0,0.00016247,2]
[338726545,1726899054714,-3000.0,0.0001625,2]
[338726546,1726899054723,-151.0,0.0001626,2]
[338726547,1726899054732,-151.0,0.0001626,2]
[338726548,1726899054741,-167.510448,0.0001626,2]
[338726549,1726899054750,-167.510448,0.0001626,2]
[338726550,1726899054758,-151.0,0.0001626,2]
[338726551,1726899054767,-151.0,0.0001626,2]
[338726552,1726899054777,-151.0,0.0001626,2]
[338726553,1726899054786,-151.0,0.0001626,2]
[338726554,1726899054796,-151.523071,0.0001626,2]
[338726555,1726899054805,-151.0,0.0001626,2]
[338726556,1726899054814,-151.0,0.0001626,2]
[338726557,1726899054823,-151.0,0.0001626,2]
[338726558,1726899054832,-151.0,0.0001626,2]
[338726559,1726899054841,-200.217822,0.0001626,2]
[338726560,1726899054850,-151.0,0.0001626,2]
[338726561,1726899054860,-151.257543,0.0001626,2]
[338726562,1726899054876,-151.0,0.0001626,2]
[338726563,1726899054886,-151.0,0.0001626,2]
[338726564,1726899054895,-151.0,0.0001626,2]
[338726565,1726899054904,-3000.0,0.0001626,2]
[338726566,1726899054913,-3000.0,0.0001627,2]
[338726567,1726899054922,-153.0,0.00016274,2]
[338726568,1726899054931,-153.0,0.00016274,2]
[338726569,1726899054940,-153.0,0.00016274,2]
[338726570,1726899054950,-153.0,0.00016274,2]
[338726571,1726899054959,-153.0,0.00016274,2]
[338726572,1726899054968,-153.0,0.00016274,2]
[338726573,1726899054978,-153.0,0.00016274,2]
[338726574,1726899054987,-153.0,0.00016274,2]
[338726575,1726899054997,-153.0,0.00016274,2]
[338726576,1726899055006,-153.0,0.00016274,2]
[338726577,1726899055018,-153.0,0.00016274,2]
[338726578,1726899055028,-153.0,0.00016274,2]
[338726579,1726899055037,-3000.0,0.0001628,2]
[338726580,1726899055047,-3000.0,0.0001629,2]
[338726581,1726899055056,-1000.0,0.000163,2]
[338726582,1726899055066,-150.112233,0.000163,2]
[338726583,1726899055075,-3000.0,0.000163,2]
[338726584,1726899055085,-3000.0,0.0001631,2]
[338726585,1726899055094,-3000.0,0.0001632,2]
[338726586,1726899055103,-3000.0,0.0001633,2]
[338726587,1726899055115,-3000.0,0.0001634,2]
[338726589,1726899055124,-3000.0,0.0001635,2]
[338726591,1726899055133,-3000.0,0.0001636,2]
[338726593,1726899055142,-3000.0,0.0001637,2]
[338726594,1726899055152,-3000.0,0.0001638,2]
[338726596,1726899055162,-3000.0,0.0001639,2]
[338726598,1726899055171,-4507.2585928,0.0001639,2]
[338726600,1726899055181,-172.876654,0.0001639,2]
[338726601,1726899055190,-151.0,0.0001639,2]
[338726602,1726899055199,-172.876654,0.0001639,2]
[338726603,1726899055208,-151.0,0.0001639,2]
[338726604,1726899055218,-272.124784,0.0001639,2]
[338726605,1726899055228,-272.124784,0.0001639,2]
[338726606,1726899055237,-3000.0,0.000164,2]
[338726607,1726899055247,-600.0,0.000164,2]
[338726608,1726899055256,-3000.0,0.0001641,2]
[338726609,1726899055266,-3000.0,0.0001642,2]
[338726610,1726899055275,-3000.0,0.0001643,2]
[338726611,1726899055284,-200.0,0.00016438,2]
[338726612,1726899055294,-200.0,0.00016438,2]
[338726613,1726899055303,-200.0,0.00016438,2]
[338726614,1726899055313,-200.0,0.00016438,2]
[338726615,1726899055322,-200.0,0.00016438,2]
[338726616,1726899055332,-200.0,0.00016438,2]
[338726617,1726899055343,-200.0,0.00016438,2]
[338726618,1726899055353,-200.0,0.00016438,2]
[338726619,1726899055363,-200.0,0.00016438,2]
[338726620,1726899055373,-448.1,0.00016438,2]
[338726621,1726899055382,-151.0,0.00016438,2]
[338726622,1726899055392,-195.975159,0.00016438,2]
[338726623,1726899055401,-151.0,0.00016438,2]
[338726624,1726899055410,-3000.0,0.0001644,2]
[338726625,1726899055420,-151.0,0.0001644,2]
[338726626,1726899055429,-1390.787775,0.0001644,2]
[338726627,1726899055439,-1390.787775,0.0001644,2]
[338726628,1726899055448,-3000.0,0.0001645,2]
[338726629,1726899055457,-3000.0,0.0001646,2]
[338726630,1726899055467,-3000.0,0.0001647,2]
[338726631,1726899055476,-1200.0,0.0001648,2]
[338726632,1726899055486,-3000.0,0.0001648,2]
[338726633,1726899055495,-3000.0,0.0001649,2]
[338726634,1726899055507,-160.0,0.00016498,3]
[338726635,1726899055516,-150.112233,0.000165,2]
[338726636,1726899055525,-1504.96348622,0.000165,2]
[338726637,1726899055586,500.0,0.0001404,2]
[338726639,1726899055645,-500.0,0.00014042,2]
[338726640,1726899055654,-500.0,0.00014316,2]
[338726641,1726899055664,-500.0,0.0001459,2]
[338726642,1726899055674,-1495.03651378,0.000165,2]
[338726643,1726899055684,-1032.522224,0.000165,2]
[338726644,1726899055694,-1032.522224,0.000165,2]
[338726646,1726899055703,-446.241031,0.000165,2]
[338726647,1726899055714,-446.241031,0.000165,2]
[338726649,1726899055726,-1466.107169,0.000165,2]
[338726650,1726899055736,-1466.107169,0.000165,2]
[338726651,1726899055747,-231.628617,0.000165,2]
[338726652,1726899055759,-231.628617,0.000165,2]
[338726653,1726899055772,-3000.0,0.000165,2]
[338726654,1726899055781,-1697.432242,0.000165,2]
[338726655,1726899055790,-151.0,0.00016502,2]
[338726656,1726899055800,-151.0,0.00016502,2]
[338726657,1726899055811,-151.0,0.00016502,2]
[338726658,1726899055822,-151.0,0.00016502,2]
[338726659,1726899055833,-151.0,0.00016502,2]
[338726660,1726899055843,-151.0,0.00016502,2]
[338726661,1726899055853,-558.89,0.00016506,2]
[338726662,1726899055862,-1234.07,0.00016506,2]
[338726663,1726899055872,-500.0,0.00016506,2]
[338726664,1726899055882,-737.13,0.00016506,2]
[338726665,1726899055892,-525.70656381,0.00016506,2]
[338726666,1726899055906,-830.488172,0.00016506,2]
[338726668,1726899056068,-500.0,0.00014042,2]
[338726669,1726899056078,-500.0,0.00014316,2]
[338726670,1726899056087,-500.0,0.0001459,2]
[338726671,1726899056096,-500.0,0.00014864,2]
[338726672,1726899056105,-500.0,0.00014864,2]
[338726673,1726899056118,-270.20087617,0.00015138,2]
[338726674,1726899056128,-15293.8023058,0.00016506,2]
[338726675,1726899056139,-515.75313794,0.00016506,2]
[338726676,1726899056150,-595.84989679,0.00016506,2]
[338726677,1726899063823,500.0,0.0001404,2]
[338726678,1726899081257,500.0,0.0001404,2]
[338726679,1726899081292,310.87690465,0.0001404,2]
[338726680,1726899083954,500.0,0.0001404,2]
[338726681,1726899086304,500.0,0.0001404,2]
[338726684,1726899101855,151.44737868,0.00013941,2]
[338726686,1726899118940,500.0,0.0001404,2]
[338726689,1726899128114,500.0,0.0001404,2]
[338726690,1726899139752,500.0,0.0001404,2]
[338726691,1726899145573,500.0,0.0001404,2]
[338726693,1726899149229,1000.0,0.00013945,2]
[338726694,1726899155708,811.1,0.0001404,2]
[338726695,1726899158071,500.0,0.0001404,2]
[338726696,1726899161787,554.003847,0.00013699,2]
[338726697,1726899173647,500.0,0.0001404,2]
[338726698,1726899175439,500.0,0.0001404,2]
[338726699,1726899196114,500.0,0.0001404,2]
[338726700,1726899197648,191.0263064,0.00012733,2]
[338726701,1726899200730,500.0,0.0001404,2]
[338726702,1726899203939,761.85,0.0001404,2]
[338726703,1726899214993,500.0,0.0001404,2]
[338726704,1726899221053,500.0,0.0001404,2]
[338726705,1726899226519,500.0,0.0001404,2]
[338726706,1726899229020,484.1896653,0.0001404,2]
[338726707,1726899232631,500.0,0.0001404,2]
[338726708,1726899232964,500.0,0.0001404,2]
[338726709,1726899239598,500.0,0.0001404,2]
[338726710,1726899241062,731.5,0.0001404,2]
[338726711,1726899246825,500.0,0.0001404,2]
[338726712,1726899247879,13497.56,0.0001404,2]
[338726713,1726899258228,2081.62,0.0001404,2]
[338726714,1726899287296,500.0,0.0001404,2]
[338726715,1726899290958,500.0,0.0001404,2]
[338726716,1726899302225,500.0,0.0001404,2]
[338726717,1726899304247,2384.51745071,0.00013942,2]
[338726718,1726899312773,500.0,0.0001404,2]
[338726719,1726899353047,38727.16,0.00014,2]
[338726720,1726899355597,500.0,0.0001404,2]
[338726721,1726899360638,300.0,0.0001404,2]
[338726722,1726899362105,500.0,0.0001404,2]
[338726723,1726899363375,300.0,0.0001404,2]
[338726724,1726899370114,500.0,0.0001404,2]
[338726725,1726899370924,500.0,0.0001404,2]
[338726726,1726899378607,161.453577,0.00013435,2]
[338726727,1726899378863,161.453577,0.00013513,2]
[338726728,1726899379071,161.453577,0.0001359,2]
[338726729,1726899379283,161.453577,0.00013668,2]
[338726730,1726899379511,161.453577,0.00013746,2]
[338726731,1726899379719,161.453577,0.00013824,2]
[338726732,1726899379942,161.453577,0.00013901,2]
[338726733,1726899380327,161.453577,0.00013979,2]
[338726734,1726899382397,500.0,0.0001404,2]
[338726735,1726899387254,275.31067039,0.00013941,2]
[338726736,1726899388429,500.0,0.0001404,2]
[338726737,1726899405637,500.0,0.0001404,2]
[338726738,1726899420782,300.0,0.0001404,2]
[338726739,1726899422632,300.0,0.0001404,2]
[338726740,1726899428564,1796.73,0.0001404,2]
[338726741,1726899440760,152.94,0.0001404,2]
[338726742,1726899442734,6634.30902,0.00013205,2]
[338726743,1726899444341,500.0,0.0001404,2]
[338726744,1726899447093,500.0,0.0001404,2]
[338726745,1726899451892,228.842507,0.00011781,2]
[338726746,1726899453316,500.0,0.0001404,2]
[338726747,1726899455894,500.0,0.0001404,2]
[338726748,1726899466178,206.72,0.0001404,2]
[338726749,1726899480593,300.0,0.0001404,2]
[338726750,1726899480844,847.32,0.0001404,2]
[338726751,1726899483790,300.0,0.0001404,2]
[338726752,1726899503402,291.16269423,0.0001404,2]
[338726753,1726899505159,154.0,0.0001404,2]
[338726754,1726899510562,500.0,0.0001404,2]
[338726755,1726899524317,2086.45276938,0.00013941,2]
[338726756,1726899540903,300.0,0.0001404,2]
[338726757,1726899543580,300.0,0.0001404,2]
[338726758,1726899544747,250.33111339,0.0001404,2]
[338726759,1726899546491,500.0,0.0001404,2]
[338726760,1726899546893,500.0,0.0001404,2]
[338726761,1726899559220,500.0,0.0001404,2]
[338726762,1726899585998,354.91537314,0.0001404,2]
[338726763,1726899590515,500.0,0.0001404,2]
[338726764,1726899600946,300.0,0.0001404,2]
[338726765,1726899603278,300.0,0.0001404,2]
[338726766,1726899604154,500.0,0.0001404,2]
[338726767,1726899607438,846.39,0.0001404,2]
[338726768,1726899611034,509.87,0.0001404,2]
[338726770,1726899615996,1200.0,0.0001178,2]
[338726771,1726899617581,1200.0,0.0001315,2]
[338726772,1726899620489,500.0,0.0001404,2]
[338726773,1726899626566,511.66313967,0.0001404,2]
[338726774,1726899642026,540.55314568,0.0001404,2]
[338726775,1726899646040,500.0,0.0001404,2]
[338726776,1726899647333,500.0,0.0001404,2]
[338726777,1726899649746,14269.9514295,0.000132,2]
[338726778,1726899657291,200.0,0.0001404,2]
[338726779,1726899660539,300.0,0.0001404,2]
[338726780,1726899663325,300.0,0.0001404,2]
[338726781,1726899664788,500.0,0.0001404,2]
[338726782,1726899670947,1141.46,0.0001404,2]
[338726783,1726899671277,500.0,0.0001404,2]
[338726784,1726899673821,500.0,0.0001404,2]
[338726785,1726899674563,500.0,0.0001404,2]
[338726787,1726899684356,551.26,0.0001404,2]
[338726788,1726899699879,520.6,0.0001404,2]
[338726789,1726899701540,500.0,0.0001404,2]
[338726790,1726899707685,571.05,0.0001404,2]
[338726791,1726899708447,678.87,0.0001404,2]
[338726792,1726899720574,300.0,0.0001404,2]
[338726793,1726899722986,20249.96,0.0001404,2]
[338726794,1726899723868,300.0,0.0001404,2]
[338726795,1726899735777,2905.59,0.0001404,2]
[338726796,1726899746013,500.0,0.0001404,2]
[338726797,1726899746047,500.0,0.0001404,2]
[338726798,1726899747179,1825.64617319,0.00013941,2]
[338726799,1726899760262,500.0,0.0001404,2]
[338726800,1726899768570,594.94,0.0001404,2]
[338726801,1726899780572,500.0,0.0001404,2]
[338726802,1726899780604,300.0,0.0001404,2]
[338726803,1726899783315,501.08490612,0.0001404,2]
[338726804,1726899784324,277.001924,0.00013699,2]
[338726805,1726899785085,500.0,0.0001404,2]
[338726806,1726899792084,500.0,0.0001404,2]
[338726807,1726899798686,1041.96,0.0001404,2]
[338726808,1726899812168,500.0,0.0001404,2]
[338726809,1726899815182,356.1344272,0.0001404,2]
[338726810,1726899821125,59981.6958983,0.00014032,2]
[338726811,1726899823523,61320.5199983,0.00014032,2]
[338726812,1726899823737,583.96,0.0001404,2]
[338726813,1726899826240,500.0,0.0001404,2]
[338726814,1726899828818,500.0,0.0001404,2]
[338726815,1726899829469,161.33371117,0.0001404,2]
[338726817,1726899833767,527.04212277,0.0001404,2]
[338726818,1726899834918,500.0,0.0001404,2]
[338726819,1726899840503,300.0,0.0001404,2]
[338726820,1726899852241,511.91,0.0001404,2]
[338726821,1726899869284,500.0,0.0001404,2]
[338726822,1726899874371,500.0,0.0001404,2]
[338726823,1726899876215,500.0,0.0001404,2]
[338726824,1726899881442,546.4504727,0.0001404,2]
[338726825,1726899887815,500.0,0.0001404,2]
[338726826,1726899900694,300.0,0.0001404,2]
[338726827,1726899903362,300.0,0.0001404,2]
[338726828,1726899903453,1093.9,0.0001404,2]
[338726829,1726899909436,607.96,0.0001404,2]
[338726830,1726899915841,500.0,0.0001404,2]
[338726832,1726899926274,500.0,0.0001404,2]
[338726833,1726899933903,298.24468417,0.0001404,2]
[338726834,1726899940112,650.59,0.0001404,2]
[338726835,1726899947633,500.0,0.0001404,2]
[338726836,1726899949380,1055.85,0.0001404,2]
[338726837,1726899951928,500.0,0.0001404,2]
[338726839,1726899960800,300.0,0.0001404,2]
[338726840,1726899962930,300.0,0.0001404,2]
[338726841,1726899967493,1597.44040155,0.00013941,2]
[338726842,1726899976431,500.0,0.0001404,2]
[338726843,1726899979736,500.0,0.0001404,2]
[338726844,1726899981173,6749.98,0.0001404,2]
[338726845,1726899988884,500.0,0.0001404,2]
[338726846,1726899992102,2784.53,0.0001404,2]
[338726847,1726900007986,161.453577,0.00013276,2]
[338726848,1726900008258,161.453577,0.00013968,2]
[338726849,1726900014910,396.52837721,0.0001404,2]
[338726850,1726900020556,233.0,0.0001404,2]
[338726851,1726900023362,300.0,0.0001404,2]
[338726852,1726900025100,500.0,0.0001404,2]
[338726853,1726900033311,393.48397774,0.0001404,2]
[338726854,1726900034360,217.400381,0.00011781,2]
[338726855,1726900035296,505.63,0.0001404,2]
[338726856,1726900047212,500.0,0.0001404,2]
[338726857,1726900048032,500.0,0.0001404,2]
[338726858,1726900049940,500.0,0.0001404,2]
[338726859,1726900065482,510.40920777,0.0001404,2]
[338726860,1726900070513,500.0,0.0001404,2]
[338726862,1726900079437,559.63,0.0001404,2]
[338726863,1726900079754,500.0,0.0001404,2]
[338726864,1726900080577,500.0,0.0001404,2]
[338726865,1726900083269,300.0,0.0001404,2]
[338726866,1726900093997,397.95552662,0.000123,2]
[338726867,1726900096743,2346.86,0.0001404,2]
[338726868,1726900103743,500.0,0.0001404,2]
[338726873,1726900109485,500.0,0.0001404,2]
[338726876,1726900111613,500.0,0.0001404,2]
[338726879,1726900117441,10064.03171675,0.00014,2]
[338726880,1726900117805,1545.08216722,0.0001,2]
[338726881,1726900118717,500.0,0.0001404,2]
[338726882,1726900119014,500.0,0.0001404,2]
[338726883,1726900122899,500.0,0.0001404,2]
[338726884,1726900124430,56982.6111034,0.00014032,2]
[338726885,1726900126348,500.0,0.0001404,2]
[338726886,1726900129207,58254.4939984,0.00014032,2]
[338726887,1726900129326,401.51580415,0.0001404,2]
[338726888,1726900130380,500.0,0.0001404,2]
[338726889,1726900133305,500.0,0.0001404,2]
[338726890,1726900135674,500.0,0.0001404,2]
[338726891,1726900140214,1048.32,0.0001404,2]
[338726892,1726900143738,300.0,0.0001404,2]
[338726893,1726900148245,500.0,0.0001404,2]
[338726894,1726900157090,574.45795594,0.0001404,2]
[338726895,1726900165326,500.0,0.0001404,2]
[338726896,1726900166295,500.0,0.0001404,2]
[338726897,1726900173907,500.0,0.0001404,2]
[338726898,1726900176137,623.48,0.0001404,2]
[338726899,1726900189142,1397.76035133,0.00013941,2]
[338726900,1726900191728,1011.86,0.0001404,2]
[338726901,1726900208175,500.0,0.0001404,2]
[338726902,1726900212749,312.87577202,0.0001404,2]
[338726903,1726900212783,500.0,0.0001404,2]
[338726904,1726900215166,500.0,0.0001404,2]
[338726905,1726900215510,19124.96,0.0001404,2]
[338726906,1726900224462,501.25568566,0.0001404,2]
[338726909,1726900225816,2668.5,0.0001404,2]
[338726910,1726900226612,500.0,0.0001404,2]
[338726911,1726900227519,500.0,0.0001404,2]
[338726946,1726900232576,-500.0,0.00014041,2]
[338726948,1726900232586,-500.0,0.00014041,2]
[338726949,1726900232597,-92.18472264,0.00014041,2]
[338726952,1726900232610,-407.81527736,0.00014041,2]
[338726953,1726900232620,-265.8408371,0.00014041,2]
[338727445,1726900238678,-234.1591629,0.00014041,2]
[338727447,1726900238687,-500.0,0.00014041,2]
[338727449,1726900238697,-500.0,0.00014041,2]
[338727451,1726900238706,-5.89690533,0.00014041,2]
[338727453,1726900238718,-494.10309467,0.00014041,2]
[338727455,1726900238727,-538.05,0.00014041,2]
[338727457,1726900238737,-500.0,0.00014041,2]
[338727459,1726900238745,-500.0,0.00014041,2]
[338727461,1726900238755,-500.0,0.00014041,2]
[338727463,1726900238764,-467.84690533,0.00014041,2]
[338727465,1726900238776,-32.15309467,0.00014041,2]
[338727467,1726900238785,-222.48223807,0.00014041,2]
[338727470,1726900238798,-277.51776193,0.00014041,2]
[338727473,1726900238807,-500.0,0.00014041,2]
[338727476,1726900238816,-500.0,0.00014041,2]
[338727479,1726900238825,-500.0,0.00014041,2]
[338727482,1726900238835,-500.0,0.00014041,2]
[338727483,1726900238844,-500.0,0.00014041,2]
[338727487,1726900238853,-534.91587501,0.00014041,2]
[338727489,1726900238863,-500.0,0.00014041,2]
[338727491,1726900238872,-260.16607196,0.00014041,2]
[338727494,1726900238887,-239.83392804,0.00014041,2]
[338727496,1726900238901,-500.0,0.00014041,2]
[338727498,1726900238910,-500.0,0.00014041,2]
[338727500,1726900238919,-500.0,0.00014041,2]
[338727502,1726900238929,-500.0,0.00014041,2]
[338727504,1726900238939,-503.45819037,0.00014041,2]
[338727506,1726900238949,-500.0,0.00014041,2]
[338727508,1726900238959,-500.0,0.00014041,2]
[338727511,1726900238969,-500.0,0.00014041,2]
[338727513,1726900238978,-500.0,0.00014041,2]
[338727514,1726900238987,-500.0,0.00014041,2]
[338727516,1726900238996,-500.0,0.00014041,2]
[338727519,1726900239007,-500.0,0.00014041,2]
[338727521,1726900239016,-210.43346884,0.00014041,2]
[338727523,1726900239027,-500.0,0.00014041,2]
[338727525,1726900239038,-500.92641342,0.00014041,2]
[338727527,1726900239049,-500.0,0.00014041,2]
[338727529,1726900239058,-185.55275421,0.00014041,2]
[338727531,1726900239068,-339.72249121,0.00014041,2]
[338727533,1726900239077,-500.0,0.00014041,2]
[338727535,1726900239087,-500.0,0.00014041,2]
[338727536,1726900239098,-500.0,0.00014041,2]
[338727538,1726900239108,-199.25246753,0.00014041,2]
[338727540,1726900239119,-500.0,0.00014041,2]
[338727542,1726900239131,-500.0,0.00014041,2]
[338727544,1726900239142,-500.0,0.00014041,2]
[338727546,1726900239154,-500.0,0.00014041,2]